bitfinex/quotes_ETHUSD_20250908
["timestamp","ask_amount","ask_price","bid_price","bid_amount"]
[1757306055051,0.67524325,4311.6,4310.4,0.002]
[1757306055250,0.67524325,4311.6,4310.9,2.31969176]
[1757306055467,0.85885,4311.7,4310.5,3.0]
[1757306055468,0.2415,4311.0,4310.5,3.0]
[1757306055789,0.2415,4311.0,4310.9,2.31970122]
[1757306056083,0.7362,4311.0,4310.4,0.002]
[1757306056268,0.4563,4310.9,4310.4,0.002]
[1757306056471,0.75375,4310.9,4310.4,0.002]
[1757306056668,1.70858999,4310.9,4310.4,0.002]
[1757306057250,1.49205,4310.9,4310.4,0.002]
[1757306057449,1.70841381,4310.9,4310.4,0.002]
[1757306058250,1.49205,4310.9,4310.4,0.002]
[1757306059803,1.03575,4310.9,4310.4,0.002]
[1757306060089,1.48995,4310.9,4310.5,2.31989398]
[1757306060286,1.03575,4310.9,4310.5,2.31989398]
[1757306060858,4.1016,4310.9,4310.4,0.002]
[1757306061160,4.1016,4310.9,4310.8,2.32175503]
[1757306061574,1.782,4311.1,4310.9,2.31964934]
[1757306061884,0.2952,4311.0,4310.9,2.31964934]
[1757306062090,0.2952,4311.0,4310.8,0.002]
[1757306062091,0.7899,4311.0,4310.8,0.002]
[1757306062393,1.581,4310.9,4310.8,0.002]
[1757306062858,1.8762,4310.9,4310.8,0.002]
[1757306065880,1.4731,4310.9,4310.8,0.002]
[1757306067355,0.9784,4310.9,4310.8,0.002]
[1757306067756,1.782,4311.1,4310.8,2.61905503]
[1757306067957,0.1152,4310.9,4310.8,2.61905503]
[1757306068259,0.1152,4310.9,4310.8,0.2993]
[1757306068455,0.1152,4310.9,4310.8,2.61905503]
[1757306069164,0.1152,4310.9,4310.8,0.2993]
[1757306070291,0.1152,4310.9,4310.8,0.002]
[1757306071494,0.3425,4310.9,4310.8,0.002]
[1757306072100,1.39545,4310.9,4310.8,0.002]
[1757306072304,1.86575,4310.9,4310.8,0.002]
[1757306072668,1.39545,4310.9,4310.8,0.002]
[1757306073271,0.3425,4310.9,4310.8,0.002]
[1757306073468,0.1152,4310.9,4310.8,0.002]
[1757306074507,0.1152,4310.9,4310.8,2.61905503]
[1757306075377,0.1152,4310.9,4310.8,3.54415503]
[1757306075594,1.782,4311.1,4311.0,2.31964741]
[1757306075793,5.64,4311.1,4311.0,3.54204741]
[1757306076122,5.64,4311.1,4311.0,3.05754741]
[1757306077279,5.8673,4311.1,4310.8,2.32171062]
[1757306077480,0.4547,4311.0,4310.8,2.32171062]
[1757306077685,0.2297,4310.9,4310.8,2.32171062]
[1757306081110,5.64,4311.1,4310.8,2.32171062]
[1757306081308,0.2297,4310.9,4310.8,2.32171062]
[1757306081889,0.5699,4311.0,4310.9,2.31970122]
[1757306081890,0.1152,4311.0,4310.9,2.31970122]
[1757306085820,0.1152,4311.0,4310.9,3.05760122]
[1757306086117,0.1152,4311.0,4310.9,3.54210122]
[1757306086319,1.782,4311.1,4311.0,2.31964741]
[1757306086484,5.64,4311.1,4311.0,3.54204741]
[1757306087618,0.001,4311.7,4311.2,2.3195398]
[1757306087619,3.858,4311.3,4311.2,2.3195398]
[1757306087820,0.1162,4311.7,4311.5,2.3193784]
[1757306088125,4.07551047,4311.6,4311.5,2.3193784]
[1757306088291,4.07551047,4311.6,4311.5,3.0572784]
[1757306088493,0.001,4311.6,4311.5,3.5417784]
[1757306088689,0.001,4311.6,4311.5,4.67725004]
[1757306090027,0.001,4311.6,4311.5,8.53625004]
[1757306092790,0.2283,4311.6,4311.5,2.3193784]
[1757306092990,0.001,4311.6,4311.5,2.3193784]
[1757306093529,0.001,4311.6,4311.5,2.6248784]
[1757306094105,0.001,4311.6,4311.5,3.0826784]
[1757306095127,0.001,4311.6,4311.5,4.11669386]
[1757306095929,0.001,4311.6,4311.5,4.20957208]
[1757306097325,0.001,4311.6,4311.5,3.25797208]
[1757306098438,0.001,4311.6,4311.5,3.37317208]
[1757306098807,0.001,4311.6,4311.5,2.52745662]
[1757306099502,0.001,4311.6,4311.5,3.29075662]
[1757306099708,0.001,4311.6,4311.5,3.78455662]
[1757306100811,0.001,4311.6,4311.5,8.43540135]
[1757306102653,0.2712,4311.6,4311.5,2.52745662]
[1757306102941,0.7358,4311.6,4311.5,2.41225662]
[1757306103147,0.001,4311.6,4311.5,2.3193784]
[1757306104146,0.2712,4311.6,4311.5,2.3193784]
[1757306105119,0.001,4311.6,4311.5,2.6248784]
[1757306105526,0.001,4311.6,4311.5,3.0826784]
[1757306106242,0.001,4311.6,4311.5,4.14381387]
[1757306106460,0.001,4311.6,4311.5,4.25901387]
[1757306106755,0.001,4311.6,4311.5,4.39921387]
[1757306109151,0.001,4311.6,4311.5,9.0500586]
[1757306110217,0.001,4311.6,4311.5,4.39921387]
[1757306110621,0.001,4311.6,4311.5,3.90541387]
[1757306111260,0.001,4311.6,4311.5,4.39921387]
[1757306111447,0.2712,4311.6,4311.5,3.14211387]
[1757306111757,0.2712,4311.6,4311.5,2.3193784]
[1757306112059,3.792,4311.5,4310.8,0.002]
[1757306112224,7.81273558,4311.6,4310.8,0.002]
[1757306112225,0.792,4311.0,4310.8,0.002]
[1757306112551,4.1821,4310.9,4310.8,0.002]
[1757306112785,5.4387,4310.9,4310.8,0.002]
[1757306112928,8.35690686,4310.9,4310.8,0.002]
[1757306113123,9.88964252,4310.9,4310.8,0.002]
[1757306113542,12.88964252,4310.9,4310.8,0.002]
[1757306114258,13.64385639,4310.9,4310.8,0.002]
[1757306114846,0.792,4310.3,4310.0,0.002]
[1757306115059,10.76297651,4310.1,4310.0,0.002]
[1757306115266,19.80683954,4310.1,4310.0,0.002]
[1757306115558,20.65383954,4310.1,4310.0,0.002]
[1757306115884,22.44083954,4310.1,4310.0,0.002]
[1757306116179,20.72927654,4310.1,4310.0,0.002]
[1757306116375,17.07510339,4310.1,4310.0,0.002]
[1757306116672,16.57210339,4310.1,4310.0,0.002]
[1757306116876,16.69971739,4310.1,4310.0,0.002]
[1757306117176,16.58371739,4310.1,4310.0,0.002]
[1757306117348,16.67668346,4310.1,4310.0,0.002]
[1757306117542,17.17968346,4310.1,4310.0,0.002]
[1757306117742,16.79268346,4310.1,4310.0,0.002]
[1757306117943,17.17968346,4310.1,4310.0,0.002]
[1757306118366,17.17828377,4310.1,4310.0,0.002]
[1757306118561,17.06228377,4310.1,4310.0,0.002]
[1757306118785,17.17828377,4310.1,4310.0,0.002]
[1757306118936,19.16338377,4310.1,4310.0,0.002]
[1757306119136,17.83588377,4310.1,4310.0,0.002]
[1757306119350,17.33288377,4310.1,4310.0,0.002]
[1757306119538,17.35157977,4310.1,4310.0,0.002]
[1757306119762,16.77157977,4310.1,4310.0,0.002]
[1757306119982,18.61932577,4310.1,4310.0,0.002]
[1757306120188,18.50332577,4310.1,4310.0,0.002]
[1757306120399,18.61932577,4310.1,4310.0,0.002]
[1757306120577,18.94182577,4310.1,4310.0,0.002]
[1757306120775,17.78122577,4310.1,4310.0,0.002]
[1757306120984,18.28422577,4310.1,4310.0,0.002]
[1757306121158,18.28395577,4310.1,4310.0,0.002]
[1757306121692,18.73275577,4310.1,4310.0,0.002]
[1757306121859,9.85081177,4310.1,4310.0,0.002]
[1757306122060,18.73275577,4310.1,4310.0,0.002]
[1757306122470,16.90225577,4310.1,4310.0,0.002]
[1757306123215,18.82855577,4310.1,4310.0,0.002]
[1757306123718,17.01825577,4310.1,4310.0,0.002]
[1757306124713,16.56945577,4310.1,4310.0,0.002]
[1757306125284,16.93102377,4310.1,4310.0,0.002]
[1757306125523,18.24946477,4310.1,4310.0,0.002]
[1757306126021,18.24870477,4310.1,4310.0,0.002]
[1757306126384,9.85081177,4310.1,4310.0,0.002]
[1757306126583,18.24870477,4310.1,4310.0,0.002]
[1757306127115,20.94054777,4310.1,4310.0,0.002]
[1757306127305,18.74054777,4310.1,4310.0,0.002]
[1757306127509,17.41304777,4310.1,4310.0,0.002]
[1757306127812,18.10672577,4310.1,4310.0,0.002]
[1757306127981,25.38048877,4310.1,4310.0,0.002]
[1757306128179,25.47861177,4310.1,4310.0,0.002]
[1757306128422,25.47789088,4310.1,4310.0,0.002]
[1757306128784,24.77956788,4310.1,4310.0,0.002]
[1757306129016,27.63956788,4310.1,4310.0,0.002]
[1757306129211,26.76558282,4310.1,4310.0,0.002]
[1757306129412,26.97957722,4310.1,4310.0,0.002]
[1757306129615,23.45207722,4310.1,4310.0,0.002]
[1757306129932,25.65207722,4310.1,4310.0,0.002]
[1757306130131,25.55627722,4310.1,4310.0,0.002]
[1757306130837,26.32705522,4310.1,4310.0,0.002]
[1757306131133,28.52705522,4310.1,4310.0,0.002]
[1757306132939,37.27473922,4310.1,4310.0,0.002]
[1757306133828,36.95855222,4310.1,4310.0,0.002]
[1757306133997,36.84255222,4310.1,4310.0,0.002]
[1757306134198,36.29047722,4310.1,4310.0,0.002]
[1757306134623,35.59582622,4310.1,4310.0,0.002]
[1757306134824,28.12692222,4310.1,4310.0,0.002]
[1757306135024,28.17623922,4310.1,4310.0,0.002]
[1757306135255,26.36777022,4310.1,4310.0,0.002]
[1757306135460,26.86158637,4310.1,4310.0,0.002]
[1757306136146,26.80802837,4310.1,4310.0,0.002]
[1757306136351,26.00454378,4310.1,4310.0,0.002]
[1757306136658,25.31395078,4310.1,4310.0,0.002]
[1757306136976,23.78278463,4310.1,4310.0,0.002]
[1757306137466,24.75578283,4310.1,4310.0,0.002]
[1757306137829,24.27748283,4310.1,4310.0,0.002]
[1757306141849,6.11218561,4310.0,4309.8,0.027]
[1757306142184,20.47754225,4310.0,4309.8,0.027]
[1757306142365,20.78954225,4310.0,4309.8,0.027]
[1757306142565,21.24894225,4310.0,4309.8,0.027]
[1757306142777,21.57694264,4310.0,4309.8,0.027]
[1757306143360,3.11240096,4309.6,4309.5,0.4594]
[1757306143580,16.19550012,4309.6,4309.5,0.4594]
[1757306143749,16.19550012,4309.6,4309.5,0.7556]
[1757306144096,16.68880012,4309.6,4309.5,0.7556]
[1757306144275,18.47180012,4309.6,4309.5,1.2469]
[1757306146794,25.53180012,4309.6,4309.5,1.2469]
[1757306149106,25.53180012,4309.6,4309.5,0.7556]
[1757306151272,25.53445052,4309.6,4309.5,0.7556]
[1757306156605,20.87131611,4309.6,4309.5,1.2093]
[1757306156907,13.915643,4309.6,4309.5,1.2093]
[1757306157118,17.214343,4309.6,4309.5,1.2093]
[1757306157316,16.422343,4309.6,4309.5,1.2093]
[1757306157477,16.9976982,4309.6,4309.5,1.2093]
[1757306157674,17.21429232,4309.6,4309.5,1.2093]
[1757306160232,20.21568844,4309.6,4309.5,0.2982]
[1757306160431,20.21568844,4309.6,4309.5,0.002]
[1757306160598,20.51388844,4309.6,4309.5,0.002]
[1757306161032,20.51388844,4309.6,4309.5,0.3012]
[1757306161539,20.51388844,4309.6,4309.5,0.7514]
[1757306163336,20.76568844,4309.6,4309.5,0.002]
[1757306163648,21.70358844,4309.6,4309.5,0.002]
[1757306164737,21.20889024,4309.6,4309.5,0.002]
[1757306164923,21.70733703,4309.6,4309.5,0.002]
[1757306165130,21.26123596,4309.6,4309.5,0.002]
[1757306171045,20.76943596,4309.6,4309.5,0.002]
[1757306175370,21.26123596,4309.6,4309.5,0.002]
[1757306181660,0.792,4309.4,4309.1,0.022]
[1757306181851,9.29508442,4309.2,4309.1,0.022]
[1757306182052,35.53295561,4309.2,4309.1,0.022]
[1757306182275,6.2286702,4309.1,4309.0,1e-08]
[1757306182489,17.86771004,4309.1,4309.0,1e-08]
[1757306182689,21.32531801,4309.1,4309.0,1e-08]
[1757306182983,21.41830526,4309.1,4309.0,1e-08]
[1757306188460,20.97600526,4309.1,4309.0,1e-08]
[1757306188892,20.22860526,4309.1,4309.0,0.74850001]
[1757306189297,6.11272406,4309.0,4308.9,0.002]
[1757306189598,8.70253403,4309.0,4308.9,0.002]
[1757306190192,9.18203403,4309.0,4308.9,0.002]
[1757306190402,9.47523403,4309.0,4308.9,0.002]
[1757306191269,9.18203403,4309.0,4308.9,0.002]
[1757306191514,12.25503403,4309.0,4308.9,0.7941]
[1757306191804,17.4412639,4309.0,4308.9,1.23]
[1757306192102,12.04653984,4309.0,4308.9,1.23]
[1757306192302,15.12053984,4309.0,4308.9,1.23]
[1757306192807,18.2332639,4309.0,4308.9,1.23]
[1757306193601,15.91253984,4309.0,4308.9,1.23]
[1757306193803,18.2332639,4309.0,4308.9,1.23]
[1757306197224,9.04653984,4309.0,4308.9,0.7941]
[1757306197422,4.08159412,4309.0,4308.9,3.55077792]
[1757306197606,3.865,4309.0,4308.9,3.55077792]
[1757306199824,1.783,4309.6,4309.5,2.3204548]
[1757306199995,1.99899599,4309.6,4309.5,3.5484548]
[1757306200315,5.651,4309.6,4309.5,3.5484548]
[1757306203833,0.001,4309.8,4309.7,2.32034712]
[1757306204002,0.001,4309.8,4309.7,8.41031173]
[1757306204197,1.137,4309.8,4309.7,9.63831173]
[1757306204402,1.137,4309.8,4309.7,4.13522731]
[1757306205916,0.001,4309.8,4309.7,4.13522731]
[1757306206542,0.001,4309.8,4309.7,3.11244712]
[1757306210385,0.001,4309.8,4309.4,2.87239906]
[1757306210386,0.001,4309.8,4309.4,0.116]
[1757306210553,0.2932,4309.5,4309.0,2.32071726]
[1757306210872,0.2932,4309.5,4308.9,0.4815]
[1757306210873,3.869,4309.4,4309.1,2.32066406]
[1757306211587,3.869,4309.4,4309.2,2.32061479]
[1757306212472,3.869,4309.4,4309.3,3.5485625]
[1757306214189,3.869,4309.4,4309.3,3.1126625]
[1757306217094,1.899,4309.5,4309.4,2.32050865]
[1757306217294,5.651,4309.5,4309.4,3.24700865]
[1757306217464,5.651,4309.5,4309.4,3.55780865]
[1757306220998,5.651,4309.5,4309.4,2.32050865]
[1757306222296,5.9415,4309.5,4309.4,2.32050865]
[1757306222800,6.4019,4309.5,4309.2,2.32056577]
[1757306223006,6.4019,4309.5,4309.0,2.43868598]
[1757306223007,0.4604,4309.4,4309.0,2.43868598]
[1757306223207,3.868,4309.3,4309.0,2.43868598]
[1757306223501,3.868,4309.3,4309.2,2.32061635]
[1757306224363,3.868,4309.3,4309.2,2.63141635]
[1757306224872,3.868,4309.3,4309.2,3.08881635]
[1757306225479,3.868,4309.3,4309.2,3.55791635]
[1757306227292,3.868,4309.3,4309.2,3.08881635]
[1757306227675,1.783,4309.5,4309.4,2.32050865]
[1757306227969,0.001,4309.8,4309.7,2.32034712]
[1757306228200,0.001,4309.8,4309.7,6.97679617]
[1757306228387,0.001,4309.8,4309.7,7.40359617]
[1757306228590,0.001,4309.8,4309.7,8.33009617]
[1757306228771,0.001,4309.8,4309.7,12.29155168]
[1757306229099,0.001,4310.3,4309.7,12.29155168]
[1757306229100,1e-08,4310.2,4310.1,2.32013178]
[1757306229300,1e-08,4310.2,4310.1,13.96158083]
[1757306229503,1e-08,4310.2,4310.1,14.27238083]
[1757306229707,1e-08,4310.2,4310.1,15.19888083]
[1757306229875,1e-08,4310.2,4310.1,16.21747597]
[1757306232921,1.808,4311.8,4310.4,2.31994687]
[1757306233208,2.7,4311.8,4310.8,7.09140408]
[1757306233506,2.7,4311.8,4311.1,6.97604265]
[1757306233695,2.7,4311.8,4311.1,7.93749816]
[1757306234009,2.7,4311.8,4311.1,9.28999816]
[1757306234519,0.025,4311.8,4311.1,12.17479816]
[1757306237095,0.21054411,4312.6,4312.5,3.08704057]
[1757306239312,0.21054411,4312.6,4312.5,6.95904057]
[1757306242109,0.21054411,4312.6,4312.5,6.50164057]
[1757306242422,0.21054411,4312.6,4312.5,7.46309608]
[1757306243228,0.21054411,4312.6,4312.5,7.92049608]
[1757306244732,0.21054411,4312.6,4312.5,8.03569608]
[1757306245285,0.21054411,4312.6,4312.5,7.57829608]
[1757306245592,0.50004411,4312.6,4312.5,7.26749608]
[1757306245936,0.21054411,4312.6,4312.5,7.26749608]
[1757306246095,0.21054411,4312.6,4312.5,7.57159608]
[1757306246697,0.21054411,4312.6,4312.5,7.26749608]
[1757306247333,0.21054411,4312.6,4312.5,7.57159608]
[1757306247741,0.21054411,4312.6,4312.5,8.04329608]
[1757306249340,0.025,4312.8,4312.7,2.31873304]
[1757306249633,0.025,4312.8,4312.7,6.97518209]
[1757306249836,0.025,4312.8,4312.7,8.29787723]
[1757306250833,0.025,4312.8,4312.7,7.99377723]
[1757306251738,0.025,4312.8,4312.7,11.86077723]
[1757306253838,1.2283,4312.8,4312.7,11.86077723]
[1757306254040,1.2283,4312.8,4312.7,10.84118209]
[1757306254249,1.2283,4312.8,4312.7,2.31873304]
[1757306254619,1.2293,4312.8,4312.7,2.31873304]
[1757306256628,1.2293,4312.8,4312.5,0.1152]
[1757306256864,0.4637,4312.7,4312.0,3.865]
[1757306257032,0.4637,4312.7,4312.4,2.31889296]
[1757306257033,1.03873,4312.7,4312.4,2.31889296]
[1757306257234,0.9138,4312.6,4312.4,2.31889296]
[1757306257414,0.12493,4312.7,4312.4,2.31889296]
[1757306257415,0.9138,4312.5,4312.4,2.31889296]
[1757306257615,0.9138,4312.5,4312.3,2.31894808]
[1757306257816,0.9138,4312.5,4312.4,2.31889435]
[1757306257817,0.2895,4312.5,4312.4,2.31889435]
[1757306258319,1.2033,4312.5,4312.4,2.31889435]
[1757306258866,1.2033,4312.5,4312.1,2.43424574]
[1757306258867,1.32623,4312.5,4312.1,0.1152]
[1757306259149,1.32623,4312.5,4311.5,0.002]
[1757306259150,0.792,4312.4,4311.5,0.002]
[1757306259347,1.00771123,4312.4,4311.7,2.31922017]
[1757306259558,0.2895,4311.8,4311.7,2.31927082]
[1757306259849,1.2033,4311.8,4311.7,2.31927082]
[1757306260224,1.2033,4311.8,4311.5,0.002]
[1757306260424,0.7532,4311.8,4311.5,0.002]
[1757306260622,0.7396,4311.8,4311.7,2.31927082]
[1757306260848,0.9138,4312.1,4311.5,4.65844905]
[1757306261032,0.9138,4312.1,4311.9,2.31912145]
[1757306261428,3.866,4312.2,4312.0,2.31910946]
[1757306261953,0.2895,4312.1,4312.0,2.31910946]
[1757306262150,0.7532,4312.1,4312.0,2.31910946]
[1757306262559,0.4637,4312.5,4312.2,2.31895427]
[1757306262854,0.2895,4312.3,4312.2,2.31895427]
[1757306263042,0.02000001,4312.9,4312.4,6.9753434]
[1757306263244,3.88700001,4312.9,4312.4,6.9753434]
[1757306264619,0.02000001,4312.9,4312.7,2.31873304]
[1757306264817,0.02000001,4312.9,4312.7,7.27928209]
[1757306265467,0.02000001,4312.9,4312.7,6.97518209]
[1757306265633,0.7792,4312.8,4312.7,2.31873304]
[1757306265836,1.2293,4312.8,4312.7,2.31873304]
[1757306267878,1.35423,4312.8,4311.9,3.868]
[1757306268079,1.35423,4312.8,4311.3,5.95021383]
[1757306268080,3.70387573,4312.7,4311.3,6.43844905]
[1757306268371,0.792,4312.5,4311.5,2.32135375]
[1757306268521,0.9138,4312.4,4311.5,2.32135375]
[1757306268872,0.9138,4312.3,4312.0,2.31909738]
[1757306269173,0.2895,4312.1,4312.0,2.31909738]
[1757306269376,1.2033,4312.1,4312.0,2.31909738]
[1757306269927,1.2033,4312.1,4311.7,0.1152]
[1757306270129,0.9138,4312.0,4311.7,0.1152]
[1757306270425,0.9138,4312.0,4311.9,2.31916324]
[1757306270625,0.7532,4312.0,4311.9,2.31916324]
[1757306272856,0.7532,4312.0,4311.7,2.43443654]
[1757306272857,1.2033,4312.0,4311.7,2.43443654]
[1757306273161,0.9138,4311.9,4311.8,2.32119779]
[1757306273549,1.2067,4311.9,4311.8,2.32119779]
[1757306273947,7.76937,4311.9,4311.8,0.002]
[1757306274147,7.9852026,4311.9,4311.8,0.002]
[1757306275370,7.76937,4311.9,4311.8,0.002]
[1757306278243,7.1986,4311.9,4311.8,0.002]
[1757306279262,7.6767,4311.9,4311.8,0.002]
[1757306280265,9.99586324,4311.9,4311.8,0.002]
[1757306280469,12.99586324,4311.9,4311.8,0.002]
[1757306280675,13.21149627,4311.9,4311.8,0.002]
[1757306280847,14.76455199,4311.9,4311.8,0.002]
[1757306287226,12.44538875,4311.9,4311.8,0.002]
[1757306288121,14.76455199,4311.9,4311.8,0.002]
[1757306288979,14.28645199,4311.9,4311.8,0.002]
[1757306290007,14.76455199,4311.9,4311.8,0.002]
[1757306290206,14.76555199,4311.9,4311.8,0.002]
[1757306290515,4.1609,4311.9,4311.8,0.002]
[1757306290717,5.11,4311.9,4311.8,0.002]
[1757306290917,8.22116324,4311.9,4311.8,0.002]
[1757306291121,8.22116324,4311.9,4311.5,0.002]
[1757306291122,3.11132461,4311.6,4311.5,0.002]
[1757306291320,3.792,4311.2,4311.0,0.002]
[1757306291495,10.58674636,4311.1,4311.0,0.002]
[1757306291702,13.85543996,4311.1,4311.0,0.002]
[1757306296140,21.41190156,4311.1,4311.0,0.002]
[1757306296316,20.91543996,4311.1,4311.0,0.002]
[1757306297242,21.41200055,4311.1,4311.0,0.002]
[1757306298713,42.45273225,4311.1,4311.0,0.002]
[1757306299023,43.05102942,4311.1,4311.0,0.002]
[1757306299222,43.05102942,4311.1,4310.9,0.002]
[1757306299223,8.67284741,4311.0,4310.9,0.002]
[1757306299434,27.13023238,4311.0,4310.9,0.002]
[1757306299632,28.38384538,4311.0,4310.9,0.002]
[1757306299820,27.45400438,4311.0,4310.9,0.002]
[1757306300644,33.05487438,4311.0,4310.9,0.002]
[1757306301548,5.55780884,4310.7,4309.0,0.002]
[1757306301714,55.84978794,4310.7,4309.0,0.002]
[1757306302046,57.09178794,4310.7,4309.0,0.002]
[1757306302450,0.792,4310.2,4309.0,0.002]
[1757306302648,43.17818646,4310.2,4309.0,0.002]
[1757306302948,6.11223944,4309.9,4309.0,0.002]
[1757306303128,14.68677044,4309.9,4309.0,0.002]
[1757306303450,15.79626646,4309.9,4309.0,0.002]
[1757306303750,17.78442124,4309.9,4309.0,0.002]
[1757306304249,17.39742124,4309.9,4309.0,0.002]
[1757306304447,18.00857217,4309.9,4309.0,0.002]
[1757306304847,18.00625117,4309.9,4309.0,0.002]
[1757306305846,18.00417117,4309.9,4309.0,0.002]
[1757306306446,18.00417117,4309.9,4309.0,0.4857]
[1757306306447,12.74116417,4309.9,4309.0,0.4857]
[1757306306847,12.25296417,4309.9,4309.0,0.4857]
[1757306307551,14.37934017,4309.9,4309.0,0.4857]
[1757306307918,9.73484017,4309.9,4309.0,0.002]
[1757306308147,11.50146417,4309.9,4309.8,0.3274]
[1757306308342,11.50146417,4309.9,4309.4,0.4563]
[1757306308343,2.32036903,4309.7,4309.4,0.4563]
[1757306308545,0.792,4309.4,4309.0,0.002]
[1757306308860,3.792,4309.2,4309.0,0.002]
[1757306309258,3.792,4309.2,4309.1,0.3224]
[1757306309428,3.792,4309.2,4309.1,0.5752]
[1757306309624,3.792,4309.2,4309.1,0.3224]
[1757306310037,4.7388,4309.2,4309.1,0.3224]
[1757306310638,3.792,4309.2,4309.1,0.3224]
[1757306310957,6.86311635,4309.2,4309.1,0.02]
[1757306311156,4.1031,4309.2,4309.1,0.02]
[1757306311361,6.86311635,4309.2,4309.1,0.02]
[1757306311758,4.7573782,4309.2,4309.1,0.02]
[1757306311944,5.33108755,4309.2,4309.1,0.02]
[1757306312145,7.6517039,4309.2,4309.1,0.02]
[1757306312930,7.9628039,4309.2,4309.1,0.02]
[1757306313160,8.4022039,4309.2,4309.1,0.02]
[1757306314636,8.8904039,4309.2,4309.1,0.02]
[1757306315863,8.4022039,4309.2,4309.1,0.02]
[1757306317234,7.6517039,4309.2,4309.1,0.02]
[1757306317627,8.8904039,4309.2,4309.1,0.02]
[1757306318055,9.07173355,4309.2,4309.1,0.02]
[1757306318259,9.56739441,4309.2,4309.1,0.02]
[1757306318658,9.07173355,4309.2,4309.1,0.02]
[1757306318859,9.4024172,4309.2,4309.1,0.3224]
[1757306319063,11.72303355,4309.2,4309.1,0.3224]
[1757306319267,12.21891566,4309.2,4309.1,0.3224]
[1757306319464,9.89829931,4309.2,4309.1,0.3224]
[1757306319739,11.20675905,4309.2,4309.1,0.02]
[1757306320067,8.07920785,4309.2,4309.1,0.3224]
[1757306320255,10.89585043,4309.2,4309.1,0.02]
[1757306320871,12.13455043,4309.2,4309.1,0.02]
[1757306323164,18.70635043,4309.2,4309.1,0.02]
[1757306323363,20.2227584,4309.2,4309.1,0.3224]
[1757306323777,3.908,4309.1,4309.0,0.002]
[1757306323977,4.61890443,4309.1,4309.0,0.002]
[1757306324279,4.79881466,4309.1,4309.0,0.002]
[1757306324668,8.68881466,4309.1,4309.0,0.002]
[1757306325550,8.96955137,4309.1,4309.0,0.002]
[1757306326164,11.29022157,4309.1,4309.0,0.002]
[1757306326760,8.96955137,4309.1,4309.0,0.002]
[1757306327361,11.29022157,4309.1,4309.0,0.002]
[1757306328284,8.96955137,4309.1,4309.0,0.002]
[1757306328454,11.29022157,4309.1,4309.0,0.002]
[1757306328859,11.4197855,4309.1,4309.0,0.002]
[1757306329068,12.17028712,4309.1,4309.0,0.002]
[1757306329966,11.85918712,4309.1,4309.0,0.002]
[1757306330160,12.17028712,4309.1,4309.0,0.002]
[1757306333558,12.63828712,4309.1,4309.0,0.002]
[1757306333789,19.69828712,4309.1,4309.0,0.002]
[1757306334189,25.19480622,4309.1,4309.0,0.002]
[1757306337188,33.97673322,4309.1,4309.0,0.002]
[1757306337360,31.34503322,4309.1,4309.0,0.002]
[1757306337691,29.39147522,4309.1,4309.0,0.002]
[1757306338101,30.71404922,4309.1,4309.0,0.002]
[1757306338293,28.71452122,4309.1,4309.0,0.002]
[1757306338678,28.40899522,4309.1,4309.0,0.002]
[1757306339168,19.60898712,4309.1,4309.0,0.002]
[1757306340365,12.24811692,4309.1,4309.0,0.002]
[1757306340622,11.96738021,4309.1,4309.0,0.002]
[1757306340812,15.75938021,4309.1,4309.0,0.002]
[1757306341106,18.86305041,4309.1,4309.0,0.002]
[1757306342112,19.33105041,4309.1,4309.0,0.002]
[1757306342402,29.76700241,4309.1,4309.0,0.002]
[1757306342604,37.53142948,4309.1,4309.0,0.002]
[1757306343467,39.97762848,4309.1,4309.0,0.002]
[1757306344001,6.22872406,4309.0,4308.9,0.002]
[1757306344203,17.49923404,4309.0,4308.9,0.002]
[1757306344427,25.8068272,4309.0,4308.9,0.002]
[1757306344706,25.45204156,4309.0,4308.9,0.002]
[1757306344906,18.71337456,4309.0,4308.9,0.002]
[1757306345501,24.13780856,4309.0,4308.9,0.002]
[1757306345812,20.98930456,4309.0,4308.9,0.002]
[1757306346496,21.09035656,4309.0,4308.9,0.002]
[1757306347799,24.28037556,4309.0,4308.9,0.002]
[1757306348138,21.48635656,4309.0,4308.9,0.002]
[1757306348314,28.54635656,4309.0,4308.9,0.002]
[1757306348818,27.01851456,4309.0,4308.9,0.002]
[1757306349479,19.95851456,4309.0,4308.9,0.002]
[1757306349677,19.96401856,4309.0,4308.9,0.002]
[1757306350216,19.45801856,4309.0,4308.9,0.002]
[1757306350592,19.21701856,4309.0,4308.9,0.002]
[1757306350795,19.33301856,4309.0,4308.9,0.002]
[1757306351733,20.48271456,4309.0,4308.9,0.002]
[1757306352827,9.3026241,4309.0,4308.9,0.002]
[1757306353202,10.0856241,4309.0,4308.9,0.002]
[1757306353525,16.0772891,4309.0,4308.9,0.002]
[1757306353719,17.5996381,4309.0,4308.9,0.002]
[1757306355002,17.0966381,4309.0,4308.9,0.002]
[1757306355329,16.5513141,4309.0,4308.9,0.002]
[1757306355898,17.0566381,4309.0,4308.9,0.002]
[1757306357032,26.2511561,4309.0,4308.9,0.002]
[1757306357324,23.2117311,4309.0,4308.9,0.002]
[1757306357500,22.4380021,4309.0,4308.9,0.002]
[1757306357706,21.0117311,4309.0,4308.9,0.002]
[1757306357924,10.5536241,4309.0,4308.9,0.002]
[1757306358133,22.4212931,4309.0,4308.9,0.002]
[1757306358328,21.0117311,4309.0,4308.9,0.002]
[1757306358533,21.01270509,4309.0,4308.9,0.002]
[1757306359024,21.00970509,4309.0,4308.9,0.002]
[1757306360141,33.29055455,4309.0,4308.9,0.002]
[1757306360337,28.62978509,4309.0,4308.9,0.002]